Cogmind - Beta 16.1 @@@ ROGUE MODE // 2026.01.19 @ 17:49:26 Player: H3-MLN Result: Destroyed by X4-WVI(R) with Subdweller Laser Performance ------------- Evolutions (0) 0 Regions Visited (2) 400 Robots Destroyed (32) 160 Value Destroyed (539) 539 Prototype IDs (15) 300 Alien Tech Used (0) 0 Bonus (67) 67 TOTAL SCORE: 1466 Bonus ------- Follower Combat Kills 97 Friendly Fire -30 Cogmind --------- Core Integrity 0/250 Matter 278/300 Energy 200/200 System Corruption 0% Temperature Cool (6) Movement Treading (240) Ox1 Location -10/Subcaves Parts ------- > --- POWER (1) -------- Subdweller Power Source > --- PROPULSION (2) --- Improved Treads Subdweller Monowheel > --- UTILITY (2) ------ Large Storage Unit Hardened Light Armor Plating > --- WEAPON (2) ------- Light Cannon Battle Cannon > --- INVENTORY (15) --- Improved Treads Improved Treads Wheel Flight Unit Hardened Light Armor Plating Hardened Light Armor Plating Hardened Light Armor Plating Rainbow Chip Assault Rifle Assault Rifle Mini Grenade Launcher Mini Grenade Launcher Mini Grenade Launcher Multitool Hammer Peak State ------------ > --- POWER ------------ Subdweller Power Source > --- PROPULSION ------- Improved Treads Subdweller Monowheel > --- UTILITY ---------- Large Storage Unit Hardened Light Armor Plating > --- WEAPON ----------- Light Cannon Battle Cannon > --- INVENTORY -------- Improved Treads Improved Treads Improved Treads Wheel Flight Unit Hardened Light Armor Plating Hardened Light Armor Plating Hardened Light Armor Plating Rainbow Chip Assault Rifle Assault Rifle Mini Grenade Launcher Mini Grenade Launcher Mini Grenade Launcher Hammer [Rating: 15] Favorites ----------- Power Light Ion Engine Engine Light Ion Engine Propulsion Wheel Treads Improved Treads Wheel Wheel Utility Large Storage Unit Storage Large Storage Unit Protection Hardened Light Armor Plating Weapon Assault Rifle Ballistic Gun Assault Rifle Ballistic Cannon Battle Cannon Launcher Mini Grenade Launcher Special Weapon Mining Laser Impact Weapon Hammer Build | -11 -10 -10 ------- Run | Yrd Mat Sub Slots Evolved . | . . . Power . | . . . Propulsion . | . . . Utility . | . . . Weapon . | . . . Parts Attached 27 | 6 13 8 Power 2 | 1 . 1 Engine 2 | 1 . 1 Core . | . . . Reactor . | . . . Propulsion 7 | 2 3 2 Treads 3 | 1 1 1 Leg . | . . . Wheel 4 | 1 2 1 Hover . | . . . Flight . | . . . Utility 4 | 1 3 . Device . | . . . Storage 2 | 1 1 . Processor . | . . . Hackware . | . . . Protection 2 | . 2 . Artifact . | . . . Weapon 14 | 2 7 5 Energy Gun . | . . . Energy Cannon . | . . . Ballistic Gun 7 | 2 5 . Ballistic Cannon 2 | . . 2 Launcher 3 | . 1 2 Special Weapon 1 | . 1 . Impact Weapon 1 | . . 1 Slashing Weapon . | . . . Piercing Weapon . | . . . Special Melee Weapon . | . . . Unidentified Prototypes . | . . . Parts Lost 2 | . 2 . Power . | . . . Propulsion 1 | . 1 . Utility . | . . . Weapon 1 | . 1 . Highest Loss Streak 1 | . 1 . To Critical Strikes . | . . . Average Backups 13 | 4 10 15 Power . | 1 . . Propulsion 5 | 2 4 5 Utility 2 | . 1 3 Weapon 4 | . 3 5 Tool/Special . | . . . Unused Backups 28 | 1 12 15 Power 2 | . 1 1 Propulsion 10 | 1 4 5 Utility 8 | . 3 5 Weapon 7 | . 4 3 Tool/Special 1 | . . 1 Average Slot Usage (%) 98 | . 94 100 Engine 14 | . 14 14 Treads 14 | . 14 14 Wheel 13 | . 13 14 Storage 14 | . 14 14 Protection 12 | . 8 14 Ballistic Gun 11 | . 27 3 Ballistic Cannon 14 | . . 20 Launcher 1 | . . 1 Impact Weapon 1 | . . 1 Peak Build Rating 15 | 7 11 15 Average Rating 11 | 5 8 13 On Entrance 6 | . 7 11 Avg Prop Armor Cover (%) 7 | 15 8 6 Naked Turns . | . . . Heaviest Build 36 | 12 32 36 Greatest Support 23 | 10 23 23 Greatest Overweight (x) 3 | 1 3 3 Average Overweight (x) 1 | . 1 1 Largest Inventory Capacity 15 | 8 15 15 Average Capacity 13 | 7 12 15 Most Carried 15 | 8 15 15 Average Carried 13 | 5 11 14 Final Capacity 15 | 8 15 15 Final Carried 15 | 8 15 15 Class Distribution -------------------- 100% | Mutant Dominant Class ---------------- Mutant | -10/Materials Mutant | -10/Subcaves Resources | -11 -10 -10 ----------- Run | Yrd Mat Sub Matter Collected 1321 | 318 428 575 Remotely . | . . . Salvage Created 791 | 142 506 143 Parts 62 | 11 34 17 Haulers Intercepted 2 | . 2 . Recyclers Shooed 4 | . 4 . Parts Field Recycled . | . . . Retrieved Matter . | . . . Parts Self-Destructed 11 | . . 11 Prevented . | . . . Parts Restored . | . . . Kills | -11 -10 -10 ------- Run | Yrd Mat Sub Combat Hostiles Destroyed 18 | . 9 9 Guns 5 | . 5 . Cannons 3 | . 1 2 AOE 10 | . 3 7 Classes Destroyed 11 | 2 6 3 Worker 1 | . 1 . Tunneler 5 | 5 . . Hauler 2 | . 2 . Recycler 3 | 1 2 . Operator 1 | . 1 . Turret 1 | . . 1 Watcher 1 | . 1 . Swarmer 10 | . 5 5 Grunt 4 | . 4 . Artisan 1 | . . 1 Subdweller 4 | . . 4 Best Kill Streak 5 | 5 4 3 Combat Bots Only 4 | . 4 3 Max Kills in Single Turn 2 | 1 2 2 Gunslinging . | . . . Exploded 2 | . 2 2 Melee . | . . . Uniques/NPCs Destroyed . | . . . Combat | -11 -10 -10 -------- Run | Yrd Mat Sub Hostile Shots Fired 98 | . 41 57 Missed 30 | . 10 20 Hits 68 | . 31 37 Projectile 68 | . 31 37 AOE 2 | . . 2 Damage Taken 996 | . 365 631 Core 251 | . 56 195 Absorbed by Shields . | . . . Core Remaining (%) 100 | 100 . . Volleys Fired 117 | 14 62 41 Largest 2 | 2 2 2 Hottest 120 | 40 120 63 Shots Fired 202 | 28 121 53 Gun 145 | 28 115 2 Cannon 33 | . . 33 Launcher 21 | . 3 18 Special 3 | . 3 . Kinetic 178 | 28 115 35 Thermal 3 | . 3 . Explosive 21 | . 3 18 Electromagnetic . | . . . Robot Hit Streak 13 | 13 8 8 Robot Miss Streak 3 | 3 3 2 Penetration Max . | . . . Secondary Targets . | . . . Shots Hit Robots 111 | 21 75 15 Core Hits 54 | 7 31 16 Critical Kills . | . . . Critical Parts Destroyed 2 | . 2 . Critical Strikes 2 | . 2 . Destroy 2 | . 2 . Melee Attacks 19 | . . 19 Impact 19 | . . 19 Slashing . | . . . Piercing . | . . . Sneak Attacks 1 | . . 1 Combat Hostiles . | . . . Follow-up Attacks . | . . . Damage Inflicted 2572 | 266 1139 1167 Guns 1164 | 266 888 10 Cannons 177 | . . 177 Explosions 1196 | . 216 980 Melee . | . . . Ramming 9 | . 9 . Kinetic 1341 | 266 888 187 Thermal 26 | . 26 . Explosive 1196 | . 216 980 Electromagnetic . | . . . Impact . | . . . Slashing . | . . . Piercing . | . . . Highest Corruption . | . . . Average Corruption . | . . . Corruption Purged . | . . . Corruption Blocked . | . . . Overload Shots . | . . . Overflow Damage 71 | . 19 52 Projectiles . | . . . Explosions 71 | . 19 52 Melee . | . . . Knockbacks 1 | . . 1 Impact . | . . . Kinetic 1 | . . 1 Secondary . | . . . Self-Inflicted Damage 58 | . 11 47 Shots 2 | . 1 1 Rammed 1 | . 1 . Targets Rammed 1 | . 1 . Kicked . | . . . Crushed . | . . . Highest Temperature 78 | . 78 . Average Temperature 16 | . 16 . Received Heat Transfer 240 | . 120 120 Siege Activations . | . . . Martial Activations . | . . . Shielding Activations . | . . . Robots Disrupted . | . . . Combat Hostiles . | . . . Robots Corrupted . | . . . Combat Hostiles . | . . . Parts Fried . | . . . Impact Corruptions . | . . . Robots Melted . | . . . Combat Hostiles . | . . . Parts Melted . | . . . Heat Transferred 50 | . 50 . Parts Sabotaged . | . . . Parts Stolen . | . . . Parts Stripped . | . . . Power Chain Reactions . | . . . Alert | -11 -10 -10 ------- Run | Yrd Mat Sub Maximum Alert Level . | . . . Low Security (%) 100 | 100 100 . Level 1 . | . . . Level 2 . | . . . Level 3 . | . . . Level 4 . | . . . Level 5 . | . . . High Security . | . . . Max Security . | . . . Peak Influence 140 | 10 140 . Initial . | . . . Average 32 | 2 37 . Influence Increases 656 | 30 289 337 Destroy 0b10 Robot/C 340 | . 180 160 Destroy 0b10 Robot/NC 70 | 30 40 . Destroy Leader 58 | . 48 10 Allied During Kill 17 | . . 17 Successful Hack 5 | . 5 . Disable Machine 15 | . 15 . Destroy Structure 1 | . 1 . Lose Combat Pursuer 150 | . . 150 Influence Decreases 649 | 30 289 330 Time Decay 629 | 30 269 330 Lost Part 20 | . 20 . Squads Dispatched 2 | . 2 . Investigation . | . . . Extermination . | . . . Reinforcement 2 | . 2 . Assault . | . . . Garrison . | . . . Intercept . | . . . Searches Triggered . | . . . Construction Impeded . | . . . Haulers Reinforced . | . . . Active Scanning Responses . | . . . Cargo Convoy Interrupts . | . . . Stealth | -11 -10 -10 --------- Run | Yrd Mat Sub Distress Signals 3 | . 3 . Communications Jammed . | . . . Distress Signals . | . . . Times Spotted 49 | . 26 23 Peak Tracking Total 6 | . 5 6 Tactical Retreats 2 | . . 2 Traps | -11 -10 -10 ------- Run | Yrd Mat Sub Traps Triggered 1 | . . 1 Indirectly . | . . . Trap Hack Attempts . | . . . Triggered . | . . . Disarmed . | . . . Reprogrammed . | . . . Reused . | . . . Traps Extracted . | . . . Installed . | . . . Triggered . | . . . Machines | -11 -10 -10 ---------- Run | Yrd Mat Sub Machines Disabled 5 | . 1 4 Max in Single Turn 2 | . 1 2 Machines Repaired . | . . . Machines Dismantled . | . . . Machines Sabotaged . | . . . Overloaded Fab Kills . | . . . Hacking | -11 -10 -10 --------- Run | Yrd Mat Sub Machines Accessed 5 | . 3 2 Terminals 2 | . 2 . Fabricators . | . . . Repair Stations . | . . . Recycling Units 1 | . 1 . Scanalyzers . | . . . Garrison Access . | . . . Total Hacks 13 | . 7 6 Successful 10 | . 4 6 Failed 2 | . 2 . Catastrophic . | . . . Database Lockouts 1 | . 1 . Manual 3 | . 3 . Terminals 5 | . 5 . Fabricators . | . . . Repair Stations . | . . . Recycling Units 2 | . 2 . Scanalyzers . | . . . Garrison Access . | . . . Terminal Hacks 8 | . 2 6 Record 5 | . . 5 Robot Analysis 1 | . 1 . Prototype ID Bank 1 | . 1 . Proto ID Catalog 1 | . . 1 Fabricator Hacks . | . . . Repair Station Hacks . | . . . Recycling Unit Hacks 2 | . 2 . Report Inventory 1 | . 1 . Retrieve Components 1 | . 1 . Scanalyzer . | . . . Garrison Access Hacks . | . . . Unauthorized Hacks . | . . . Terminals . | . . . Fabricators . | . . . Repair Stations . | . . . Recycling Units . | . . . Scanalyzers . | . . . Garrison Access . | . . . Data Cores Recovered . | . . . Used . | . . . Hacking Detections 1 | . 1 . Full Trace Events . | . . . Feedback Events . | . . . Feedback Blocked . | . . . Robot Schematics Acquired . | . . . Robots Built . | . . . Authchips . | . . . Time . | . . . Total Robot Build Rating . | . . . Part Schematics Acquired . | . . . Parts Built . | . . . Authchips . | . . . Time . | . . . Total Part Build Rating . | . . . Part Studies Acquired . | . . . Parts Repaired . | . . . Time . | . . . Parts Recycled . | . . . Recycled Matter . | . . . Retrieved Matter . | . . . Retrieved Components 10 | . 10 . Parts Scanalyzed . | . . . Part Schematics Acquired . | . . . Parts Damaged . | . . . Bothacking | -11 -10 -10 ------------ Run | Yrd Mat Sub Used RIF Installer . | . . . Robots Hacked . | . . . Non-combat . | . . . Combat . | . . . Robot Hacks Applied . | . . . Relay Couplers Released . | . . . Fabnet Peak Effective % . | . . . Robots Rewired . | . . . Allies Hacked . | . . . Hacks Repelled . | . . . Allies | -11 -10 -10 -------- Run | Yrd Mat Sub Total Allies 1 | . 1 . Largest Group 1 | . 1 1 Highest-Rated Group 34 | . 34 34 Highest-Rated Ally 34 | . 34 34 Total Orders . | . . . Ally Attacks 31 | . 2 29 Total Damage 495 | . 49 446 Kills 6 | . 1 5 Allies Corrupted . | . . . Allies Melted . | . . . Intel | -11 -10 -10 ------- Run | Yrd Mat Sub Active Infowar (turns) . | . . . Robot Analysis Total 1 | . 1 . Derelict Logs Recovered 3 | . . 3 Drone Launches . | . . . Drone Recoveries . | . . . Exploration | -11 -10 -10 ------------- Run | Yrd Mat Sub Turns Passed 3187 | 130 921 2136 Spaces Moved 1617 | 90 482 1045 Core 5 | 5 . . Treads 484 | . 100 384 Legs . | . . . Wheels 1128 | 85 382 661 Hover . | . . . Flight . | . . . Fastest Speed 50 | 50 80 120 Average Speed 150 | 79 130 166 Slowest Speed 240 | 95 240 240 Overloaded Moves . | . . . Propulsion Burnouts . | . . . Robots Hopped . | . . . Potential Cave-ins . | . . . Cave-ins Triggered . | . . . Exploration Rate (%) 39 | 4 59 55 Regions Visited 2 Branch Regions 1 Pre-discovered Areas 2 | . . 2 Known Exits Taken . | . . . Unknown Exits Taken 2 | 1 1 . Scrap Searched 5 | . . 5 Spaces Dug 54 | . . 54 Terrain Destroyed 114 | . . 114 Melee . | . . . Projectile . | . . . AOE 114 | . . 114 Terrain Rammed . | . . . Walls Destroyed . | . . . Machines Disabled . | . . . Actions | -11 -10 -10 --------- Run | Yrd Mat Sub Total 2141 | 123 669 1349 Wait 264 | 1 47 216 Move 1615 | 89 481 1045 Hop . | . . . Pick Up 46 | 11 32 3 Fast Attach 7 | 4 3 . Attach 5 | 2 3 . Detach 1 | . 1 . Swap 28 | . 8 20 Drop 38 | 2 31 5 Fire 117 | 14 62 41 Melee 19 | . . 19 Ram . | . . . Kick . | . . . Crush 1 | . 1 . Escape Stasis . | . . . Rewire . | . . . Trap . | . . . Miscellaneous . | . . . Route ------- -11/Scrapyard -10/Materials (discovered 2 exits: [*Mat] / *Sub) -10/Subcaves (discovered 4 exits: [*Mat x2] / [*Rec] / [*Scr]) History --------- Turn | Location | Event 52 | -11/Scrapyard | Discovered new exit (range 16) 131 | -11/Scrapyard | Entered Materials 139 | -10/Materials | Central database locked down 308 | -10/Materials | Build established: Mutant 536 | -10/Materials | Discovered new exit (range 4) 674 | -10/Materials | Botcube activated 694 | -10/Materials | Botcube completed mutation into treaded form, armed with 2 guns. 1033 | -10/Materials | Discovered new exit (range 9) 1052 | -10/Materials | Entered Subcaves 1052 | -10/Subcaves | Accompanied by 1 ally 1053 | -10/Subcaves | Approached by a straggling Scientist 1093 | -10/Subcaves | Learned location of 1 exit from Materials 1191 | -10/Subcaves | Shifting Twisted Machinery released Sub. Shrapnel Launcher 1378 | -10/Subcaves | Discovered new exit (range 10) 1391 | -10/Subcaves | Shifting Twisted Machinery released Battle Cannon 1714 | -10/Subcaves | Discovered new exit (range 14) 1935 | -10/Subcaves | Core integrity fell below 50% 1962 | -10/Subcaves | Discovered new exit (range 13) 2170 | -10/Subcaves | Core integrity fell below 20% 2186 | -10/Subcaves | A swath of the cavern ceiling suddenly collapsed 2577 | -10/Subcaves | Visited Clippyterm 2581 | -10/Subcaves | Learned location of Section 7 (-2) 2581 | -10/Subcaves | Learned Research security intel 2647 | -10/Subcaves | Visited 4L-MR0's lab 2670 | -10/Subcaves | Found Rainbow Chip 3186 | -10/Subcaves | A Subdweller sparked back to life 3186 | -10/Subcaves | A Subdweller sparked back to life 3186 | -10/Subcaves | A Subdweller sparked back to life 3188 | -10/Subcaves | Destroyed by X4-WVI(R) with Subdweller Laser Last Messages --------------- Procsplitter VL-GR5's Exoskeleton "Deathgrip" Powered Cannon 02665_ Testing Chamber breached. 02669_ Dropped Lgt. Treads. 02670_ Acquired Rainbow Chip. 02676_ 4L-MR0 mumbles to no one in particular: "Damn Subs sneaking around stealing my stuff." 02684_ 4L-MR0 cries out in pain. 02684_ 4L-MR0 destroyed. 02690_ Dropped Imp. Treads. 02690_ Acquired Multitool. 02694_ Acquired 19 matter. 02740_ Acquired 44 matter. 02966_ Acquired 3 matter. 02968_ Acquired 2 matter. 02987_ Subatomizers dissect the Sub. Optics. 03186_ X4-WVI(R) creaks and sparks as it begins to move. 03186_ ED-M7E(R) creaks and sparks as it begins to move. 03186_ KF-0HA(R) creaks and sparks as it begins to move. Map ----- +----------------------------------------------------+ | ?????????# #???????????????????????????? | | ???????### ###?????????????????????????? | | ???????# """##????????????????????????? | | ????????# """####?????????????????????? | | ????????## ###"#"## ??????????????????? | | ?????????## ##?##"## ??????????????????? | | ?????????# ##???##"" ?????????????????? | | ?????????# #???# ### #?????????????????? | | ????????## ##?? # #?????????????????? | | ????????# #? ?#????????????????? | | ????????# # ### ? #????????????????? | | ????##### #### ## "## #?????????????????? | | ???## #### #"# #???????????????????? | | ??## # ### #######??????????????????? | | ### """"###????????????????? | | #????? #???????????????? | | #???## ????????????????? | | # #??##